[Event "Titled Tuesday Blitz March 28 Late 2023"]
[White "Buchenau, Frank"]
[Black "lluiss"]
[WhiteFideId "4604350"]
[WhiteElo "2157"]
[BlackElo "2195"]
[Result "1/2-1/2"]
[Round "10"]
[TimeControl "180+2"]
[Date "2023.03.28"]
[WhiteClock "0:00:11"]
[BlackClock "0:00:11"]

1. e4 {[%clk 0:03:00]}  c5 {[%clk 0:02:58]} 2. Nf3 {[%clk 0:03:00]}  d6 {[%clk 0:02:58]} 3. Bb5+ {[%clk 0:03:00]}  Nd7 {[%clk 0:02:57]} 4. O-O {[%clk 0:02:59]}  a6 {[%clk 0:02:57]} 5. Bd3 {[%clk 0:02:59]}  b5 {[%clk 0:02:46]} 6. c4 {[%clk 0:02:58]}  b4 {[%clk 0:02:39]} 7. a3 {[%clk 0:02:56]}  bxa3 {[%clk 0:02:29]} 8. Rxa3 {[%clk 0:02:56]}  Bb7 {[%clk 0:02:23]} 9. Nc3 {[%clk 0:02:53]}  e5 {[%clk 0:02:23]} 10. Bc2 {[%clk 0:02:50]}  Ngf6 {[%clk 0:02:22]} 11. Re1 {[%clk 0:02:46]}  Be7 {[%clk 0:02:22]} 12. d3 {[%clk 0:02:41]}  O-O {[%clk 0:02:22]} 13. Be3 {[%clk 0:02:36]}  Ng4 {[%clk 0:02:19]} 14. Bd2 {[%clk 0:02:35]}  Ngf6 {[%clk 0:02:07]} 15. Ne2 {[%clk 0:02:29]}  Nh5 {[%clk 0:02:04]} 16. b4 {[%clk 0:02:25]}  h6 {[%clk 0:01:45]} 17. bxc5 {[%clk 0:02:19]}  dxc5 {[%clk 0:01:45]} 18. Nc3 {[%clk 0:02:15]}  Nf4 {[%clk 0:01:38]} 19. Nxe5 {[%clk 0:02:07]}  Nxe5 {[%clk 0:01:34]} 20. Bxf4 {[%clk 0:02:06]}  Ng6 {[%clk 0:01:33]} 21. Be3 {[%clk 0:02:02]}  Bd6 {[%clk 0:01:30]} 22. Nd5 {[%clk 0:02:00]}  Bxd5 {[%clk 0:01:29]} 23. cxd5 {[%clk 0:01:56]}  Qc7 {[%clk 0:01:28]} 24. g3 {[%clk 0:01:54]}  f5 {[%clk 0:01:26]} 25. exf5 {[%clk 0:01:45]}  Ne5 {[%clk 0:01:16]} 26. Rc3 {[%clk 0:01:30]}  Qa5 {[%clk 0:01:06]} 27. Qa1 {[%clk 0:01:21]}  Qxa1 {[%clk 0:01:02]} 28. Rxa1 {[%clk 0:01:20]}  Rxf5 {[%clk 0:01:03]} 29. Bxc5 {[%clk 0:01:04]}  Nf3+ {[%clk 0:00:48]} 30. Kg2 {[%clk 0:01:02]}  Be5 {[%clk 0:00:48]} 31. d4 {[%clk 0:00:58]}  Nxd4 {[%clk 0:00:39]} 32. Bxf5 {[%clk 0:00:51]}  Nxf5 {[%clk 0:00:38]} 33. Rcc1 {[%clk 0:00:44]}  Bxa1 {[%clk 0:00:37]} 34. Rxa1 {[%clk 0:00:44]}  Rc8 {[%clk 0:00:34]} 35. Ra5 {[%clk 0:00:38]}  Rd8 {[%clk 0:00:31]} 36. Be3 {[%clk 0:00:24]}  Ne7 {[%clk 0:00:28]} 37. d6 {[%clk 0:00:23]}  Rxd6 {[%clk 0:00:24]} 38. Bc5 {[%clk 0:00:13]}  Re6 {[%clk 0:00:23]} 39. Bxe7 {[%clk 0:00:12]}  Rxe7 {[%clk 0:00:24]} 40. Rxa6 {[%clk 0:00:12]}  Rd7 {[%clk 0:00:22]} 41. h4 {[%clk 0:00:12]}  Rd3 {[%clk 0:00:21]} 42. h5 {[%clk 0:00:11]}  Kh7 {[%clk 0:00:22]} 43. Kh3 {[%clk 0:00:11]}  Rd2 {[%clk 0:00:21]} 44. f4 {[%clk 0:00:11]}  Rd7 {[%clk 0:00:17]} 45. Kg4 {[%clk 0:00:11]}  Rd5 {[%clk 0:00:17]} 46. Ra7 {[%clk 0:00:11]}  Rc5 {[%clk 0:00:16]} 47. Kh4 {[%clk 0:00:11]}  Rc4 {[%clk 0:00:14]} 48. Kg4 {[%clk 0:00:11]}  Rc5 {[%clk 0:00:14]} 49. Kf3 {[%clk 0:00:11]}  Rc3+ {[%clk 0:00:12]} 50. Kg4 {[%clk 0:00:11]}  Rc5 {[%clk 0:00:11]} 1/2-1/2


[Site "https://www.chess.com"]

[Event "Titled Tuesday Blitz March 28 Late 2023"]
[White "Jorajuria Mendoza, Algol"]
[Black "Adel, Sara"]
[WhiteFideId "5128897"]
[BlackFideId "10616764"]
[WhiteElo "2076"]
[BlackElo "1982"]
[Result "1-0"]
[Round "10"]
[TimeControl "180+2"]
[Date "2023.03.28"]
[WhiteClock "0:01:51"]
[BlackClock "0:02:07"]

1. e4 {[%clk 0:03:00]}  c6 {[%clk 0:02:59]} 2. Nf3 {[%clk 0:03:00]}  d5 {[%clk 0:02:59]} 3. d3 {[%clk 0:03:00]}  dxe4 {[%clk 0:02:59]} 4. dxe4 {[%clk 0:03:01]}  Qxd1+ {[%clk 0:03:00]} 5. Kxd1 {[%clk 0:03:02]}  Nf6 {[%clk 0:03:00]} 6. Nfd2 {[%clk 0:03:02]}  Nbd7 {[%clk 0:02:59]} 7. f3 {[%clk 0:03:00]}  e5 {[%clk 0:02:59]} 8. Bc4 {[%clk 0:02:56]}  Bc5 {[%clk 0:03:00]} 9. Nb3 {[%clk 0:02:47]}  b5 {[%clk 0:02:57]} 10. Bd3 {[%clk 0:02:35]}  Bb6 {[%clk 0:02:56]} 11. a4 {[%clk 0:02:36]}  bxa4 {[%clk 0:02:52]} 12. Rxa4 {[%clk 0:02:36]}  Nc5 {[%clk 0:02:52]} 13. Nxc5 {[%clk 0:02:36]}  Bxc5 {[%clk 0:02:52]} 14. b4 {[%clk 0:02:35]}  Bb6 {[%clk 0:02:50]} 15. Nd2 {[%clk 0:02:31]}  O-O {[%clk 0:02:50]} 16. Nc4 {[%clk 0:02:29]}  Bd4 {[%clk 0:02:45]} 17. Be3 {[%clk 0:02:21]}  Be6 {[%clk 0:02:41]} 18. Ke2 {[%clk 0:02:21]}  c5 {[%clk 0:02:37]} 19. Bxd4 {[%clk 0:02:14]}  cxd4 {[%clk 0:02:34]} 20. Nxe5 {[%clk 0:02:11]}  Rfb8 {[%clk 0:02:31]} 21. Nc6 {[%clk 0:02:10]}  Rb7 {[%clk 0:02:30]} 22. Nxd4 {[%clk 0:02:04]}  Bd7 {[%clk 0:02:30]} 23. b5 {[%clk 0:02:05]}  Rc8 {[%clk 0:02:23]} 24. Rha1 {[%clk 0:02:02]}  Ne8 {[%clk 0:02:11]} 25. Rxa7 {[%clk 0:02:00]}  Rxa7 {[%clk 0:02:12]} 26. Rxa7 {[%clk 0:02:01]}  Be6 {[%clk 0:02:08]} 27. b6 {[%clk 0:01:56]}  Nd6 {[%clk 0:02:07]} 28. b7 {[%clk 0:01:53]}  Rb8 {[%clk 0:02:07]} 29. Ra8 {[%clk 0:01:51]} 1-0


[Site "https://www.chess.com"]

[Event "Titled Tuesday Blitz March 28 Late 2023"]
[White "Ozalp, Burak"]
[Black "Narva, Triin"]
[WhiteFideId "6314210"]
[BlackFideId "4502680"]
[WhiteElo "2106"]
[BlackElo "1944"]
[Result "1-0"]
[Round "10"]
[TimeControl "180+2"]
[Date "2023.03.28"]
[WhiteClock "0:00:06"]
[BlackClock "0:00:02"]

1. Nf3 {[%clk 0:02:59]}  g6 {[%clk 0:02:14]} 2. g3 {[%clk 0:02:54]}  Bg7 {[%clk 0:02:15]} 3. Bg2 {[%clk 0:02:55]}  Nf6 {[%clk 0:02:15]} 4. O-O {[%clk 0:02:56]}  O-O {[%clk 0:02:16]} 5. c4 {[%clk 0:02:47]}  d6 {[%clk 0:02:15]} 6. Nc3 {[%clk 0:02:46]}  e5 {[%clk 0:02:15]} 7. d3 {[%clk 0:02:46]}  Nc6 {[%clk 0:02:15]} 8. Rb1 {[%clk 0:02:46]}  a5 {[%clk 0:02:15]} 9. a3 {[%clk 0:02:46]}  Bg4 {[%clk 0:02:12]} 10. b4 {[%clk 0:02:45]}  axb4 {[%clk 0:02:12]} 11. axb4 {[%clk 0:02:46]}  Qd7 {[%clk 0:02:12]} 12. Re1 {[%clk 0:02:45]}  Bh3 {[%clk 0:02:02]} 13. Bh1 {[%clk 0:02:45]}  Nh5 {[%clk 0:01:56]} 14. Nd5 {[%clk 0:02:37]}  Rab8 {[%clk 0:01:53]} 15. Ng5 {[%clk 0:02:23]}  Be6 {[%clk 0:01:51]} 16. b5 {[%clk 0:01:54]}  Ne7 {[%clk 0:01:48]} 17. Nxe7+ {[%clk 0:01:40]}  Qxe7 {[%clk 0:01:48]} 18. Nxe6 {[%clk 0:01:41]}  Qxe6 {[%clk 0:01:46]} 19. Bd5 {[%clk 0:01:35]}  Qe7 {[%clk 0:01:41]} 20. e3 {[%clk 0:01:32]}  Kh8 {[%clk 0:01:41]} 21. Bf3 {[%clk 0:01:26]}  Nf6 {[%clk 0:01:34]} 22. Bb2 {[%clk 0:01:15]}  Nd7 {[%clk 0:01:30]} 23. d4 {[%clk 0:01:07]}  e4 {[%clk 0:01:30]} 24. Bg2 {[%clk 0:01:05]}  f5 {[%clk 0:01:30]} 25. f3 {[%clk 0:01:03]}  Qf7 {[%clk 0:00:46]} 26. fxe4 {[%clk 0:01:00]}  Qxc4 {[%clk 0:00:42]} 27. exf5 {[%clk 0:00:50]}  Rxf5 {[%clk 0:00:40]} 28. Qe2 {[%clk 0:00:32]}  Qxe2 {[%clk 0:00:35]} 29. Rxe2 {[%clk 0:00:32]}  Rxb5 {[%clk 0:00:35]} 30. Rc1 {[%clk 0:00:22]}  c6 {[%clk 0:00:31]} 31. Bc3 {[%clk 0:00:20]}  Nf6 {[%clk 0:00:19]} 32. Ra2 {[%clk 0:00:17]}  Re8 {[%clk 0:00:17]} 33. Bd2 {[%clk 0:00:16]}  Ng4 {[%clk 0:00:15]} 34. Bf1 {[%clk 0:00:16]}  Rb3 {[%clk 0:00:13]} 35. Re1 {[%clk 0:00:13]}  Rb6 {[%clk 0:00:07]} 36. h3 {[%clk 0:00:13]}  Nf6 {[%clk 0:00:06]} 37. Bd3 {[%clk 0:00:11]}  Nd5 {[%clk 0:00:05]} 38. Ra7 {[%clk 0:00:10]}  Nb4 {[%clk 0:00:05]} 39. Bb1 {[%clk 0:00:10]}  c5 {[%clk 0:00:04]} 40. dxc5 {[%clk 0:00:10]}  dxc5 {[%clk 0:00:04]} 41. e4 {[%clk 0:00:10]}  Bd4+ {[%clk 0:00:04]} 42. Kh1 {[%clk 0:00:09]}  c4 {[%clk 0:00:04]} 43. Bf4 {[%clk 0:00:09]}  c3 {[%clk 0:00:04]} 44. Rc1 {[%clk 0:00:08]}  Bf6 {[%clk 0:00:03]} 45. Ra4 {[%clk 0:00:07]}  Nc6 {[%clk 0:00:02]} 46. Rc4 {[%clk 0:00:06]} 1-0


[Site "https://www.chess.com"]

[Event "Titled Tuesday Blitz March 28 Late 2023"]
[White "Prieto Aranguren, Alain"]
[Black "Barria Santos, Jose Guilherme"]
[WhiteFideId "2268906"]
[BlackFideId "1939300"]
[WhiteElo "2209"]
[BlackElo "2301"]
[Result "1-0"]
[Round "10"]
[TimeControl "180+2"]
[Date "2023.03.28"]
[WhiteClock "0:02:40"]
[BlackClock "0:01:53"]

1. e4 {[%clk 0:03:00]}  c6 {[%clk 0:02:59]} 2. d4 {[%clk 0:03:00]}  d5 {[%clk 0:02:58]} 3. exd5 {[%clk 0:03:00]}  cxd5 {[%clk 0:02:57]} 4. Nf3 {[%clk 0:03:01]}  Nc6 {[%clk 0:02:55]} 5. Bd3 {[%clk 0:03:00]}  Bg4 {[%clk 0:02:50]} 6. c3 {[%clk 0:03:00]}  e6 {[%clk 0:02:46]} 7. O-O {[%clk 0:03:00]}  Nf6 {[%clk 0:02:44]} 8. Nbd2 {[%clk 0:03:00]}  Bd6 {[%clk 0:02:34]} 9. Re1 {[%clk 0:02:59]}  O-O {[%clk 0:02:34]} 10. Qa4 {[%clk 0:02:58]}  a6 {[%clk 0:02:30]} 11. Ne5 {[%clk 0:02:57]}  Bxe5 {[%clk 0:02:16]} 12. dxe5 {[%clk 0:02:57]}  Nd7 {[%clk 0:02:15]} 13. Qxg4 {[%clk 0:02:55]}  Ndxe5 {[%clk 0:02:13]} 14. Qe2 {[%clk 0:02:44]}  Qf6 {[%clk 0:01:57]} 15. Nf3 {[%clk 0:02:43]}  Nxd3 {[%clk 0:01:55]} 16. Qxd3 {[%clk 0:02:42]}  Rad8 {[%clk 0:01:53]} 17. Bg5 {[%clk 0:02:40]} 1-0


[Site "https://www.chess.com"]

[Event "Titled Tuesday Blitz March 28 Late 2023"]
[White "Dahlgren, James Allen"]
[Black "dDobravcan"]
[WhiteFideId "22256873"]
[WhiteElo "2196"]
[BlackElo "2135"]
[Result "1-0"]
[Round "10"]
[TimeControl "180+2"]
[Date "2023.03.28"]
[WhiteClock "0:00:18"]
[BlackClock "0:00:04"]

1. f4 {[%clk 0:03:00]}  d6 {[%clk 0:02:56]} 2. e4 {[%clk 0:03:00]}  c6 {[%clk 0:02:53]} 3. Nf3 {[%clk 0:02:57]}  Nf6 {[%clk 0:02:52]} 4. Nc3 {[%clk 0:02:56]}  Qa5 {[%clk 0:02:49]} 5. Be2 {[%clk 0:02:53]}  e5 {[%clk 0:02:48]} 6. O-O {[%clk 0:02:52]}  Be7 {[%clk 0:02:44]} 7. d4 {[%clk 0:02:47]}  Nbd7 {[%clk 0:02:35]} 8. Kh1 {[%clk 0:02:43]}  O-O {[%clk 0:02:30]} 9. Be3 {[%clk 0:02:42]}  Re8 {[%clk 0:02:09]} 10. a3 {[%clk 0:02:37]}  Bf8 {[%clk 0:02:05]} 11. fxe5 {[%clk 0:02:17]}  dxe5 {[%clk 0:02:03]} 12. d5 {[%clk 0:02:13]}  Qc7 {[%clk 0:01:51]} 13. Bc4 {[%clk 0:01:52]}  Nc5 {[%clk 0:01:47]} 14. Ng5 {[%clk 0:01:42]}  h6 {[%clk 0:00:57]} 15. d6 {[%clk 0:01:25]}  Bxd6 {[%clk 0:00:42]} 16. Nxf7 {[%clk 0:01:11]}  Be6 {[%clk 0:00:39]} 17. Nxd6 {[%clk 0:01:08]}  Bxc4 {[%clk 0:00:35]} 18. Nxc4 {[%clk 0:01:09]}  Ne6 {[%clk 0:00:34]} 19. Bxh6 {[%clk 0:01:03]}  Rad8 {[%clk 0:00:24]} 20. Qe1 {[%clk 0:00:53]}  gxh6 {[%clk 0:00:18]} 21. Rxf6 {[%clk 0:00:53]}  Qg7 {[%clk 0:00:18]} 22. Qf2 {[%clk 0:00:47]}  Nf4 {[%clk 0:00:17]} 23. Rxf4 {[%clk 0:00:41]}  exf4 {[%clk 0:00:15]} 24. Qxf4 {[%clk 0:00:41]}  Rf8 {[%clk 0:00:16]} 25. Qe3 {[%clk 0:00:38]}  Qg5 {[%clk 0:00:12]} 26. Qxg5+ {[%clk 0:00:38]}  hxg5 {[%clk 0:00:12]} 27. e5 {[%clk 0:00:29]}  Rd4 {[%clk 0:00:10]} 28. Nd6 {[%clk 0:00:25]}  b6 {[%clk 0:00:07]} 29. Re1 {[%clk 0:00:21]}  Rf2 {[%clk 0:00:04]} 30. Nce4 {[%clk 0:00:18]} 1-0


[Site "https://www.chess.com"]

[Event "Titled Tuesday Blitz March 28 Late 2023"]
[White "Lazavik, Denis"]
[Black "Sadhwani, Raunak"]
[WhiteFideId "13515110"]
[BlackFideId "35093487"]
[WhiteElo "2560"]
[BlackElo "2631"]
[Result "1-0"]
[Round "11"]
[TimeControl "180+2"]
[Date "2023.03.28"]
[WhiteClock "0:00:52"]
[BlackClock "0:00:03"]

1. d4 {[%clk 0:03:00]}  Nf6 {[%clk 0:02:59]} 2. c4 {[%clk 0:03:01]}  e6 {[%clk 0:03:00]} 3. Nf3 {[%clk 0:03:01]}  d5 {[%clk 0:03:00]} 4. g3 {[%clk 0:03:02]}  Bb4+ {[%clk 0:03:00]} 5. Bd2 {[%clk 0:03:02]}  Be7 {[%clk 0:03:00]} 6. Bg2 {[%clk 0:03:03]}  O-O {[%clk 0:03:01]} 7. O-O {[%clk 0:03:04]}  dxc4 {[%clk 0:03:01]} 8. Qc2 {[%clk 0:03:03]}  b5 {[%clk 0:03:02]} 9. a4 {[%clk 0:03:01]}  b4 {[%clk 0:03:02]} 10. Ne5 {[%clk 0:02:51]}  Qxd4 {[%clk 0:02:56]} 11. Nxc4 {[%clk 0:02:47]}  c6 {[%clk 0:02:44]} 12. Be3 {[%clk 0:02:45]}  Qd8 {[%clk 0:02:42]} 13. Rd1 {[%clk 0:02:44]}  Nd5 {[%clk 0:02:32]} 14. Bd4 {[%clk 0:02:43]}  c5 {[%clk 0:02:15]} 15. Be5 {[%clk 0:02:43]}  Nd7 {[%clk 0:02:14]} 16. e4 {[%clk 0:02:21]}  N5b6 {[%clk 0:02:14]} 17. Na5 {[%clk 0:02:20]}  Qe8 {[%clk 0:01:57]} 18. Bc7 {[%clk 0:02:19]}  Bd8 {[%clk 0:01:07]} 19. Bd6 {[%clk 0:01:57]}  Be7 {[%clk 0:01:07]} 20. e5 {[%clk 0:01:53]}  Nd5 {[%clk 0:01:05]} 21. Nd2 {[%clk 0:01:51]}  Bxd6 {[%clk 0:00:55]} 22. exd6 {[%clk 0:01:52]}  Ba6 {[%clk 0:00:56]} 23. Nc6 {[%clk 0:01:46]}  N7f6 {[%clk 0:00:34]} 24. Ne5 {[%clk 0:01:17]}  Qd8 {[%clk 0:00:34]} 25. Qxc5 {[%clk 0:01:10]}  Rc8 {[%clk 0:00:30]} 26. Qxa7 {[%clk 0:01:06]}  Qxd6 {[%clk 0:00:30]} 27. Qd4 {[%clk 0:01:07]}  Rfd8 {[%clk 0:00:27]} 28. Rac1 {[%clk 0:01:03]}  Rxc1 {[%clk 0:00:26]} 29. Rxc1 {[%clk 0:01:04]}  Nb6 {[%clk 0:00:19]} 30. Qxd6 {[%clk 0:01:02]}  Rxd6 {[%clk 0:00:20]} 31. a5 {[%clk 0:00:56]}  Na4 {[%clk 0:00:21]} 32. Ndc4 {[%clk 0:00:53]}  Rd4 {[%clk 0:00:17]} 33. Bf1 {[%clk 0:00:52]}  g6 {[%clk 0:00:09]} 34. Nc6 {[%clk 0:00:52]}  Rd7 {[%clk 0:00:06]} 35. N4e5 {[%clk 0:00:52]}  Bxf1 {[%clk 0:00:02]} 36. Nxd7 {[%clk 0:00:52]}  Nxd7 {[%clk 0:00:03]} 37. Kxf1 {[%clk 0:00:52]} 1-0


[Site "https://www.chess.com"]

[Event "Titled Tuesday Blitz March 28 Late 2023"]
[White "Sargsyan, Shant"]
[Black "Paravyan, David"]
[WhiteFideId "13306766"]
[BlackFideId "4194985"]
[WhiteElo "2628"]
[BlackElo "2577"]
[Result "0-1"]
[Round "11"]
[TimeControl "180+2"]
[Date "2023.03.28"]
[WhiteClock "0:00:03"]
[BlackClock "0:00:05"]

1. Nf3 {[%clk 0:02:59]}  Nf6 {[%clk 0:02:59]} 2. g3 {[%clk 0:02:59]}  c5 {[%clk 0:03:00]} 3. Bg2 {[%clk 0:02:59]}  Nc6 {[%clk 0:03:00]} 4. O-O {[%clk 0:02:59]}  e5 {[%clk 0:03:00]} 5. c4 {[%clk 0:02:59]}  d5 {[%clk 0:03:00]} 6. cxd5 {[%clk 0:02:59]}  Nxd5 {[%clk 0:03:01]} 7. Nc3 {[%clk 0:03:00]}  Be6 {[%clk 0:03:02]} 8. d3 {[%clk 0:02:59]}  Be7 {[%clk 0:03:02]} 9. Nxd5 {[%clk 0:02:51]}  Bxd5 {[%clk 0:03:02]} 10. Be3 {[%clk 0:02:52]}  O-O {[%clk 0:03:01]} 11. Rc1 {[%clk 0:02:53]}  b6 {[%clk 0:03:00]} 12. a3 {[%clk 0:02:51]}  Qd6 {[%clk 0:02:58]} 13. Nd2 {[%clk 0:02:50]}  Bxg2 {[%clk 0:02:57]} 14. Kxg2 {[%clk 0:02:51]}  f5 {[%clk 0:02:57]} 15. f3 {[%clk 0:02:42]}  Kh8 {[%clk 0:02:54]} 16. Qa4 {[%clk 0:02:41]}  Rac8 {[%clk 0:02:49]} 17. Rfd1 {[%clk 0:02:27]}  h5 {[%clk 0:02:48]} 18. Bf2 {[%clk 0:02:24]}  Bg5 {[%clk 0:02:35]} 19. h4 {[%clk 0:02:19]}  Bh6 {[%clk 0:02:23]} 20. Nc4 {[%clk 0:02:18]}  Qg6 {[%clk 0:02:19]} 21. Rc3 {[%clk 0:02:04]}  Rce8 {[%clk 0:01:58]} 22. b4 {[%clk 0:02:02]}  Nd4 {[%clk 0:01:54]} 23. bxc5 {[%clk 0:01:41]}  b5 {[%clk 0:01:50]} 24. Nxe5 {[%clk 0:01:41]}  Rxe5 {[%clk 0:01:40]} 25. Qxd4 {[%clk 0:01:42]}  Rxe2 {[%clk 0:01:41]} 26. c6 {[%clk 0:01:33]}  f4 {[%clk 0:00:57]} 27. Kf1 {[%clk 0:01:24]}  Qe6 {[%clk 0:00:43]} 28. c7 {[%clk 0:01:15]}  fxg3 {[%clk 0:00:22]} 29. c8=Q {[%clk 0:00:58]}  Rxc8 {[%clk 0:00:22]} 30. Rxc8+ {[%clk 0:00:57]}  Qxc8 {[%clk 0:00:23]} 31. Kxe2 {[%clk 0:00:43]}  Qc2+ {[%clk 0:00:22]} 32. Ke1 {[%clk 0:00:44]}  gxf2+ {[%clk 0:00:21]} 33. Qxf2 {[%clk 0:00:45]}  Qc3+ {[%clk 0:00:20]} 34. Kf1 {[%clk 0:00:44]}  Qxa3 {[%clk 0:00:20]} 35. d4 {[%clk 0:00:42]}  Be3 {[%clk 0:00:12]} 36. Qc2 {[%clk 0:00:41]}  Qf8 {[%clk 0:00:07]} 37. Qe4 {[%clk 0:00:35]}  Bf4 {[%clk 0:00:05]} 38. d5 {[%clk 0:00:35]}  Bd6 {[%clk 0:00:03]} 39. Kg2 {[%clk 0:00:34]}  Qf6 {[%clk 0:00:02]} 40. Re1 {[%clk 0:00:33]}  g6 {[%clk 0:00:02]} 41. Qe6 {[%clk 0:00:18]}  Qf4 {[%clk 0:00:02]} 42. Qe8+ {[%clk 0:00:17]}  Kg7 {[%clk 0:00:02]} 43. Qe4 {[%clk 0:00:05]}  Qg3+ {[%clk 0:00:02]} 44. Kf1 {[%clk 0:00:05]}  b4 {[%clk 0:00:02]} 45. Qd4+ {[%clk 0:00:05]}  Kh7 {[%clk 0:00:03]} 46. Qxa7+ {[%clk 0:00:04]}  Kh6 {[%clk 0:00:04]} 47. Qe3+ {[%clk 0:00:04]}  Bf4 {[%clk 0:00:04]} 48. Qe4 {[%clk 0:00:02]}  Qh3+ {[%clk 0:00:04]} 49. Ke2 {[%clk 0:00:02]}  Qg2+ {[%clk 0:00:04]} 50. Kd3 {[%clk 0:00:03]}  Qd2+ {[%clk 0:00:05]} 51. Kc4 {[%clk 0:00:03]}  Qc3+ {[%clk 0:00:02]} 52. Kb5 {[%clk 0:00:03]}  Qf6 {[%clk 0:00:02]} 53. Qe6 {[%clk 0:00:03]}  Qxh4 {[%clk 0:00:02]} 54. d6 {[%clk 0:00:03]}  b3 {[%clk 0:00:01]} 55. d7 {[%clk 0:00:03]}  b2 {[%clk 0:00:02]} 56. Kc6 {[%clk 0:00:03]}  Bc1 {[%clk 0:00:02]} 57. Qe8 {[%clk 0:00:02]}  Qa4+ {[%clk 0:00:02]} 58. Kc7 {[%clk 0:00:02]}  Qa5+ {[%clk 0:00:02]} 59. Kc8 {[%clk 0:00:02]}  Qc5+ {[%clk 0:00:03]} 60. Kd8 {[%clk 0:00:01]}  Bg5+ {[%clk 0:00:03]} 61. Re7 {[%clk 0:00:02]}  Bxe7+ {[%clk 0:00:03]} 62. Qxe7 {[%clk 0:00:03]}  Qb6+ {[%clk 0:00:02]} 63. Ke8 {[%clk 0:00:03]}  b1=Q {[%clk 0:00:02]} 64. Qf8+ {[%clk 0:00:03]}  Kg5 {[%clk 0:00:03]} 65. Qe7+ {[%clk 0:00:04]}  Kf4 {[%clk 0:00:02]} 66. d8=Q {[%clk 0:00:02]}  Qxd8+ {[%clk 0:00:03]} 67. Qxd8 {[%clk 0:00:02]}  Qf5 {[%clk 0:00:03]} 68. Qd2+ {[%clk 0:00:02]}  Kxf3 {[%clk 0:00:03]} 69. Qd1+ {[%clk 0:00:02]}  Kf2 {[%clk 0:00:04]} 70. Qd2+ {[%clk 0:00:02]}  Kg3 {[%clk 0:00:04]} 71. Qe1+ {[%clk 0:00:03]}  Kg2 {[%clk 0:00:05]} 72. Qe2+ {[%clk 0:00:03]}  Kh3 {[%clk 0:00:04]} 73. Qe3+ {[%clk 0:00:03]}  Kg4 {[%clk 0:00:05]} 74. Qg1+ {[%clk 0:00:03]}  Kf4 {[%clk 0:00:05]} 75. Qc1+ {[%clk 0:00:03]}  Kf3 {[%clk 0:00:06]} 76. Qf1+ {[%clk 0:00:03]}  Ke3 {[%clk 0:00:06]} 77. Qe1+ {[%clk 0:00:04]}  Kd4 {[%clk 0:00:07]} 78. Qb4+ {[%clk 0:00:04]}  Ke5 {[%clk 0:00:05]} 79. Qc5+ {[%clk 0:00:04]}  Kf4 {[%clk 0:00:06]} 80. Qf2+ {[%clk 0:00:04]}  Kg5 {[%clk 0:00:06]} 81. Qg1+ {[%clk 0:00:04]}  Kh6 {[%clk 0:00:06]} 82. Qc1+ {[%clk 0:00:04]}  Qg5 {[%clk 0:00:06]} 83. Qc3 {[%clk 0:00:05]}  Qb5+ {[%clk 0:00:06]} 84. Kf8 {[%clk 0:00:04]}  Qf5+ {[%clk 0:00:06]} 85. Ke8 {[%clk 0:00:04]}  h4 {[%clk 0:00:05]} 86. Qc1+ {[%clk 0:00:03]}  Kh5 {[%clk 0:00:06]} 87. Qe1 {[%clk 0:00:04]}  h3 {[%clk 0:00:04]} 88. Qe2+ {[%clk 0:00:05]}  Kh4 {[%clk 0:00:04]} 89. Qe1+ {[%clk 0:00:05]}  Kg4 {[%clk 0:00:05]} 90. Qe2+ {[%clk 0:00:05]}  Qf3 {[%clk 0:00:06]} 91. Qe6+ {[%clk 0:00:06]}  Kh5 {[%clk 0:00:03]} 92. Qe5+ {[%clk 0:00:05]}  Qf5 {[%clk 0:00:04]} 93. Qe2+ {[%clk 0:00:05]}  Kh6 {[%clk 0:00:04]} 94. Qe3+ {[%clk 0:00:06]}  g5 {[%clk 0:00:03]} 95. Qe7 {[%clk 0:00:04]}  Kh5 {[%clk 0:00:03]} 96. Qe2+ {[%clk 0:00:03]}  g4 {[%clk 0:00:03]} 97. Qe1 {[%clk 0:00:03]}  Kg5 {[%clk 0:00:03]} 98. Qe3+ {[%clk 0:00:03]}  Qf4 {[%clk 0:00:03]} 99. Qe7+ {[%clk 0:00:03]}  Qf6 {[%clk 0:00:04]} 100. Qe3+ {[%clk 0:00:04]}  Kh5 {[%clk 0:00:04]} 101. Qc5+ {[%clk 0:00:04]}  Kh4 {[%clk 0:00:04]} 102. Qc2 {[%clk 0:00:03]}  Qe5+ {[%clk 0:00:03]} 103. Kf7 {[%clk 0:00:03]}  h2 {[%clk 0:00:03]} 104. Qg2 {[%clk 0:00:03]}  Qf4+ {[%clk 0:00:02]} 105. Kg6 {[%clk 0:00:04]}  Qd6+ {[%clk 0:00:02]} 106. Kh7 {[%clk 0:00:04]}  Qe7+ {[%clk 0:00:03]} 107. Kh6 {[%clk 0:00:04]}  Qf6+ {[%clk 0:00:03]} 108. Kh7 {[%clk 0:00:04]}  Qf5+ {[%clk 0:00:03]} 109. Kh6 {[%clk 0:00:05]}  Qf4+ {[%clk 0:00:03]} 110. Kh7 {[%clk 0:00:04]}  Qc7+ {[%clk 0:00:04]} 111. Kh6 {[%clk 0:00:05]}  Qd6+ {[%clk 0:00:04]} 112. Kh7 {[%clk 0:00:05]}  Kg5 {[%clk 0:00:05]} 113. Qe2 {[%clk 0:00:04]}  h1=Q+ {[%clk 0:00:04]} 114. Kg8 {[%clk 0:00:04]}  Qhd5+ {[%clk 0:00:04]} 115. Kh8 {[%clk 0:00:03]}  Qh6# {[%clk 0:00:05]} 0-1


[Site "https://www.chess.com"]

[Event "Titled Tuesday Blitz March 28 Late 2023"]
[White "Maghsoodloo, Parham"]
[Black "Bortnyk, Olexandr"]
[WhiteFideId "12539929"]
[BlackFideId "14120828"]
[WhiteElo "2647"]
[BlackElo "2734"]
[Result "1-0"]
[Round "11"]
[TimeControl "180+2"]
[Date "2023.03.28"]
[WhiteClock "0:00:30"]
[BlackClock "0:00:01"]

1. e4 {[%clk 0:03:00]}  Nf6 {[%clk 0:03:00]} 2. e5 {[%clk 0:03:00]}  Nd5 {[%clk 0:03:00]} 3. d4 {[%clk 0:03:01]}  d6 {[%clk 0:03:01]} 4. Nf3 {[%clk 0:02:58]}  dxe5 {[%clk 0:03:01]} 5. Nxe5 {[%clk 0:02:59]}  c6 {[%clk 0:03:02]} 6. Be2 {[%clk 0:02:59]}  Bf5 {[%clk 0:03:02]} 7. O-O {[%clk 0:02:59]}  Nd7 {[%clk 0:03:02]} 8. Nf3 {[%clk 0:02:59]}  e6 {[%clk 0:03:03]} 9. Re1 {[%clk 0:02:58]}  Bd6 {[%clk 0:03:03]} 10. a3 {[%clk 0:02:44]}  O-O {[%clk 0:03:02]} 11. c4 {[%clk 0:02:44]}  N5f6 {[%clk 0:03:03]} 12. Nc3 {[%clk 0:02:44]}  e5 {[%clk 0:03:00]} 13. h3 {[%clk 0:02:30]}  h6 {[%clk 0:02:55]} 14. Be3 {[%clk 0:02:29]}  Re8 {[%clk 0:02:40]} 15. b4 {[%clk 0:02:24]}  exd4 {[%clk 0:02:28]} 16. Nxd4 {[%clk 0:02:24]}  Be5 {[%clk 0:02:12]} 17. f4 {[%clk 0:02:11]}  Bxd4 {[%clk 0:02:06]} 18. Bxd4 {[%clk 0:01:57]}  Qc7 {[%clk 0:01:56]} 19. Qd2 {[%clk 0:01:57]}  Rad8 {[%clk 0:01:54]} 20. Rad1 {[%clk 0:01:57]}  a5 {[%clk 0:01:43]} 21. Qc1 {[%clk 0:01:50]}  axb4 {[%clk 0:01:41]} 22. axb4 {[%clk 0:01:51]}  Ne4 {[%clk 0:01:35]} 23. Bf3 {[%clk 0:01:36]}  Ndf6 {[%clk 0:01:07]} 24. Nxe4 {[%clk 0:01:08]}  Nxe4 {[%clk 0:01:08]} 25. Qe3 {[%clk 0:00:53]}  Qc8 {[%clk 0:00:24]} 26. Be5 {[%clk 0:00:53]}  Rxd1 {[%clk 0:00:22]} 27. Rxd1 {[%clk 0:00:54]}  Nf6 {[%clk 0:00:22]} 28. Qd4 {[%clk 0:00:54]}  Qe6 {[%clk 0:00:20]} 29. b5 {[%clk 0:00:51]}  Ra8 {[%clk 0:00:15]} 30. Qb6 {[%clk 0:00:33]}  Qxc4 {[%clk 0:00:08]} 31. Qxb7 {[%clk 0:00:33]}  Ra2 {[%clk 0:00:03]} 32. Qxc6 {[%clk 0:00:33]}  Qb3 {[%clk 0:00:03]} 33. Bxf6 {[%clk 0:00:31]}  gxf6 {[%clk 0:00:02]} 34. Qxf6 {[%clk 0:00:32]}  Bd3 {[%clk 0:00:01]} 35. Qd8+ {[%clk 0:00:29]}  Kg7 {[%clk 0:00:01]} 36. Qxd3 {[%clk 0:00:30]} 1-0


[Site "https://www.chess.com"]